bitfinex/quotes_ETHUSD_20241120
["timestamp","ask_amount","ask_price","bid_price","bid_amount"]
[1732109503143,0.2554,3112.0,3111.2,3.21418]
[1732109503355,1.488266,3112.0,3111.3,3.214]
[1732109503554,1.488266,3112.0,3110.8,3.0]
[1732109504165,1.488266,3112.0,3111.6,3.21377]
[1732109504365,0.2554,3112.0,3111.6,3.21376]
[1732109504528,0.2554,3112.0,3111.2,3.21417]
[1732109504841,4.3803,3112.0,3111.1,3.21428]
[1732109505031,1.16694,3112.0,3111.3,3.21408]
[1732109505232,0.43802,3111.9,3111.1,3.21428]
[1732109505434,3.21347,3111.9,3111.1,3.21428]
[1732109505765,3.21357,3111.8,3111.1,3.21428]
[1732109505966,4.38035,3112.0,3110.8,3.0]
[1732109506171,0.438051,3111.8,3111.3,3.21407]
[1732109506338,0.2554,3112.0,3110.7,6.21463]
[1732109506540,0.2554,3112.0,3111.7,3.21366]
[1732109507265,0.2554,3112.0,3111.5,3.21381]
[1732109507579,0.2554,3112.0,3111.5,3.2138]
[1732109508135,0.602264,3112.0,3111.5,3.2138]
[1732109508358,0.602264,3112.0,3111.0,3.0]
[1732109508561,0.2554,3112.0,3110.8,0.705943]
[1732109508763,3.46878,3112.0,3111.2,3.2141]
[1732109508981,4.701658,3112.0,3111.2,3.2141]
[1732109509189,3.21368,3111.7,3111.0,3.21434]
[1732109509360,3.21378,3111.6,3110.9,3.21447]
[1732109509691,3.6838048,3111.8,3111.0,3.21433]
[1732109509850,3.21368,3111.7,3110.9,3.2145]
[1732109510203,0.2554,3111.7,3110.4,0.54579032]
[1732109510345,0.321368,3111.6,3110.7,3.21468]
[1732109510553,3.21403,3111.4,3110.7,3.21468]
[1732109510872,3.21403,3111.4,3110.5,3.21489]
[1732109510873,3.21411,3111.3,3110.5,3.21488]
[1732109511061,3.21448,3111.0,3110.2,4.06009]
[1732109511261,3.21462,3110.8,3110.1,3.2153]
[1732109511482,3.21462,3110.8,3110.2,3.2152]
[1732109512008,3.21482,3110.6,3110.0,3.2154]
[1732109512150,0.2554,3110.9,3109.7,3.21571]
[1732109512151,3.21493,3110.5,3109.7,3.21571]
[1732109512491,3.21503,3110.4,3109.7,3.21571]
[1732109512693,0.2566,3110.3,3109.8,3.21564]
[1732109512896,0.2566,3110.3,3109.2,0.8449]
[1732109512897,3.47175,3110.3,3109.6,3.21577]
[1732109513096,3.21534,3110.1,3109.3,3.622251]
[1732109513280,3.21575,3109.7,3109.1,3.21636]
[1732109513595,3.21575,3109.7,3108.2,0.01]
[1732109513596,0.2566,3109.6,3108.8,3.2166]
[1732109513762,3.21616,3109.3,3108.7,3.2167]
[1732109513951,3.563285,3109.5,3108.6,3.21679]
[1732109514147,3.21612,3109.4,3108.8,3.21666]
[1732109514363,3.21618,3109.3,3108.6,3.21679]
[1732109515068,3.563285,3109.5,3108.8,3.2166]
[1732109515362,3.21605,3109.5,3108.9,3.21652]
[1732109515574,3.21605,3109.5,3108.3,0.38035825]
[1732109515845,3.21638,3109.1,3108.5,3.21697]
[1732109516184,0.2566,3108.8,3108.1,3.21736]
[1732109516472,3.21699,3108.5,3107.9,3.21756]
[1732109516648,3.21692,3108.6,3107.9,3.21756]
[1732109516975,3.21692,3108.6,3108.0,0.321756]
[1732109517254,0.2566,3108.8,3108.0,0.321756]
[1732109517496,3.21679,3108.7,3108.0,3.539196]
[1732109517616,3.21699,3108.5,3107.8,3.21763]
[1732109517954,3.21699,3108.5,3107.9,3.539343]
[1732109518155,3.21699,3108.5,3108.0,3.0]
[1732109518468,0.2566,3108.8,3108.0,3.2175]
[1732109518767,0.2566,3108.8,3108.5,3.21695]
[1732109518915,0.2566,3109.2,3108.0,3.41253455]
[1732109519123,0.2566,3109.2,3108.8,3.21665]
[1732109519418,0.2566,3109.6,3108.3,3.80358253]
[1732109519646,3.47252,3109.6,3108.9,3.21649]
[1732109519990,2.67838313,3110.9,3108.9,0.8687]
[1732109520181,0.29759667,3110.8,3110.0,3.80358253]
[1732109520459,3.2142,3111.2,3110.3,3.21505]
[1732109520681,0.01,3111.9,3110.2,3.21522]
[1732109520820,3.2142,3111.2,3110.3,0.946265]
[1732109521164,12.07368,3111.7,3110.8,3.21452]
[1732109521326,0.29757891,3111.6,3110.9,0.321452]
[1732109521523,0.29754618,3111.5,3110.8,3.80358253]
[1732109521723,4.09921,3112.2,3111.3,3.21406]
[1732109521923,1.91475429,3112.1,3111.2,3.21416]
[1732109522237,0.29752729,3112.0,3111.2,3.21416]
[1732109522552,0.02,3112.4,3110.7,0.8784]
[1732109522757,3.214,3111.4,3110.6,3.21477]
[1732109523056,3.21399,3111.4,3110.6,3.21477]
[1732109523292,0.321399,3111.3,3110.6,3.21472]
[1732109523420,3.21419,3111.2,3110.3,3.21511]
[1732109523620,3.214,3111.4,3110.3,3.21511]
[1732109523621,3.21432,3111.1,3110.3,3.21511]
[1732109523848,3.21432,3111.1,3110.1,3.21529]
[1732109524053,3.61900667,3111.0,3110.2,3.2152]
[1732109524220,0.29757467,3110.9,3110.3,3.21509]
[1732109524425,0.2975489,3110.8,3110.3,3.21509]
[1732109524642,0.68333267,3110.9,3110.1,3.21529]
[1732109524859,0.321432,3111.0,3110.3,3.21503]
[1732109525159,0.29759237,3110.9,3109.9,3.21552]
[1732109525378,3.29759237,3110.9,3109.9,3.21552]
[1732109525536,3.21481,3110.6,3109.8,3.21561]
[1732109525721,3.21481,3110.6,3109.3,3.9263]
[1732109525923,3.20089346,3110.6,3109.9,3.21551]
[1732109526156,3.20089346,3110.6,3109.8,3.21557]
[1732109526360,3.5125891,3110.5,3109.8,3.21557]
[1732109526577,3.86404801,3110.4,3109.4,3.21603]
[1732109526756,3.2154,3110.1,3109.4,3.21603]
[1732109527078,3.2154,3110.1,3109.2,3.21622]
[1732109527079,3.2155,3110.0,3109.2,3.21622]
[1732109527286,3.2154,3110.1,3108.9,0.8623]
[1732109527287,3.88821891,3110.1,3108.9,0.8623]
[1732109527581,3.21566,3109.8,3109.1,3.21626]
[1732109527794,3.21561,3109.9,3109.2,3.21625]
[1732109527933,3.21561,3109.9,3109.3,3.21612]
[1732109528133,0.29787999,3109.8,3109.3,3.21612]
[1732109528340,0.29787999,3110.0,3109.7,3.21574]
[1732109528536,0.29787999,3110.0,3109.9,3.21553]
[1732109528771,0.55,3110.8,3110.2,3.21522]
[1732109528934,3.29785222,3110.7,3110.2,3.21522]
[1732109529282,3.29785222,3110.7,3110.0,3.21543]
[1732109529283,3.51267222,3110.6,3110.0,3.21543]
[1732109529483,0.29785222,3110.5,3110.0,3.21543]
[1732109529984,0.29785222,3110.5,3110.1,3.21526]
[1732109530178,0.29785222,3110.5,3109.4,0.8623]
[1732109530179,0.29785222,3110.5,3110.3,3.21512]
[1732109530352,8.86,3110.9,3110.4,3.21498]
[1732109530546,5.90228313,3111.5,3110.7,3.21471]
[1732109530547,0.29798259,3110.8,3110.7,3.21471]
[1732109530763,2.67838313,3111.8,3110.4,0.321498]
[1732109530764,12.07362,3111.8,3111.1,3.21428]
[1732109530932,0.29791102,3111.7,3111.2,3.21409]
[1732109531136,0.29791102,3111.6,3111.3,3.21404]
[1732109531337,2.67838313,3112.4,3111.3,3.21404]
[1732109531338,5.89085313,3112.9,3111.5,6.42776]
[1732109531586,3.21317082,3113.1,3111.8,3.21356]
[1732109531587,3.21273,3112.7,3111.8,3.21356]
[1732109531754,3.21233,3113.0,3111.5,0.53747105]
[1732109531956,0.29780207,3112.8,3112.2,3.21315]
[1732109532152,0.29779847,3112.7,3111.4,0.9283]
[1732109532358,3.21276,3112.6,3111.9,3.21339]
[1732109532691,3.51034207,3112.8,3111.9,3.21339]
[1732109532692,0.29779847,3112.5,3111.9,3.21339]
[1732109532985,0.29779847,3112.4,3111.9,3.21339]
[1732109533139,0.29779847,3112.3,3111.6,3.21378]
[1732109533344,0.35106485,3112.3,3111.6,3.21378]
[1732109533543,3.21284,3112.6,3111.6,3.21378]
[1732109533544,0.29768195,3112.2,3111.6,3.21378]
[1732109533766,0.55,3112.5,3111.6,3.21378]
[1732109533767,0.29768195,3112.1,3111.6,3.21378]
[1732109534036,3.21334,3112.1,3111.4,3.21396]
[1732109534283,0.29771946,3112.0,3111.4,3.21396]
[1732109534830,0.29771946,3112.0,3111.5,3.21385]
[1732109534974,3.21364,3111.8,3111.2,3.21417]
[1732109535176,9.42,3112.3,3110.4,0.9225]
[1732109535376,3.21388,3111.6,3110.9,3.21448]
[1732109535602,6.6157884,3112.2,3111.2,3.21418]
[1732109535603,0.29775395,3111.5,3111.2,3.21418]
[1732109535907,3.5648144,3111.7,3111.0,3.21438]
[1732109536075,3.86807519,3111.6,3111.0,3.21438]
[1732109536278,0.29780375,3111.5,3111.0,3.21438]
[1732109536586,0.29780375,3111.5,3110.8,3.2146]
[1732109536793,0.29780375,3111.5,3111.0,3.21433]
[1732109537196,0.29780375,3111.5,3110.8,3.2146]
[1732109537197,3.51170375,3111.5,3110.8,3.2146]
[1732109537380,0.29780375,3111.4,3110.8,3.21452]
[1732109537581,3.95720196,3111.5,3110.8,3.21452]
[1732109537805,0.29790295,3111.4,3110.4,0.9225]
[1732109537988,0.29790295,3111.4,3110.0,3.21542]
[1732109537989,3.21446,3111.0,3110.0,0.8936]
[1732109538180,3.2145,3110.9,3110.3,3.21509]
[1732109538429,3.2143,3111.1,3110.4,3.21495]
[1732109538770,3.66740538,3111.3,3110.4,3.21495]
[1732109538771,0.29801795,3111.0,3110.6,3.21474]
[1732109538925,1.29587737,3111.2,3110.7,3.2147]
[1732109539126,0.29798837,3111.1,3110.8,3.21453]
[1732109539322,6.21395,3111.5,3110.0,0.8936]
[1732109539521,0.59802175,3111.4,3110.0,0.8936]
[1732109539761,0.29802175,3111.3,3110.0,0.8936]
[1732109539977,3.51218175,3111.3,3110.6,3.21481]
[1732109540266,0.67923993,3111.2,3110.7,3.2147]
[1732109540468,0.29802175,3111.1,3110.7,3.2147]
[1732109540771,3.21412,3111.3,3110.7,3.2147]
[1732109540938,0.29806067,3111.2,3110.7,3.2147]
[1732109541124,0.29806067,3111.2,3110.9,3.21447]
[1732109541330,0.3,3111.4,3110.9,3.21447]
[1732109541529,0.64945001,3111.3,3110.9,3.21447]
[1732109541853,0.64945001,3111.3,3110.7,3.2147]
[1732109541854,0.351395,3111.3,3110.7,3.21464]
[1732109542042,0.29805382,3111.2,3110.7,3.21464]
[1732109542247,0.351395,3111.3,3110.5,3.21488]
[1732109542248,3.565495,3111.3,3110.5,3.21484]
[1732109542447,0.68457973,3111.2,3110.3,3.21511]
[1732109542646,0.29804023,3111.1,3110.1,3.21531]
[1732109542843,3.21459,3110.9,3110.1,3.21531]
[1732109543082,0.1131,3110.7,3109.7,3.21574]
[1732109543235,8.86,3111.2,3110.5,3.21482]
[1732109543584,0.29807898,3111.1,3110.8,3.21458]
[1732109543729,0.29806095,3111.2,3110.8,3.21458]
[1732109543934,0.89731,3111.2,3110.8,3.21458]
[1732109544138,0.1131,3111.3,3110.7,3.2147]
[1732109544430,0.29810697,3111.2,3110.7,3.2147]
[1732109544834,0.29810697,3111.2,3110.1,7.01886253]
[1732109544835,0.29810697,3111.2,3110.8,3.21452]
[1732109545135,3.1131,3111.7,3111.2,3.21417]
[1732109545336,0.29817027,3111.6,3111.2,0.64285]
[1732109545633,3.21348,3111.9,3111.1,3.21422]
[1732109545964,0.29818986,3111.8,3111.2,3.21419]
[1732109546172,3.83312786,3111.8,3110.9,3.21445]
[1732109546470,3.51186986,3111.7,3111.1,3.21421]
[1732109546675,3.21399,3111.4,3110.5,3.21491]
[1732109546861,0.29818986,3111.3,3110.3,3.21511]
[1732109547176,3.21431,3111.1,3110.5,3.21485]
[1732109547401,3.21431,3111.1,3110.4,3.21501]
[1732109547402,0.29818986,3111.0,3110.4,3.21501]
[1732109547684,0.29818986,3110.9,3110.6,3.2148]
[1732109547836,3.59883089,3111.1,3110.4,3.21501]
[1732109548039,3.57429309,3111.0,3110.4,3.21499]
[1732109548238,3.51308083,3111.0,3110.5,3.21489]
[1732109548540,0.29903793,3110.9,3110.6,3.21481]
[1732109548761,0.29903793,3110.8,3110.7,3.21471]
[1732109548974,0.29903793,3110.8,3110.4,0.9176]
[1732109548975,0.29903793,3110.8,3110.4,3.21497]
[1732109549178,0.29903793,3110.7,3109.9,0.9176]
[1732109549387,3.21461,3110.8,3110.1,3.21527]
[1732109549679,0.29935727,3110.7,3110.1,3.21527]
[1732109549871,0.29935727,3110.6,3109.9,0.9176]
[1732109550181,3.21508,3110.4,3109.6,3.21579]
[1732109550353,0.29935727,3110.3,3109.7,3.21567]
[1732109550555,0.29935727,3110.2,3110.0,3.21542]
[1732109550756,0.29935727,3110.1,3110.0,3.21542]
[1732109551159,0.29935727,3110.1,3109.8,3.21555]
[1732109551356,3.21513,3110.3,3109.6,3.21577]
[1732109551561,3.21529,3110.2,3109.6,3.21577]
[1732109551844,3.51477871,3110.1,3109.5,3.21592]
[1732109552046,3.51477871,3110.1,3109.3,3.80358253]
[1732109552047,3.21561,3109.9,3109.3,3.21607]
[1732109552349,0.29936871,3109.8,3109.6,3.21584]
[1732109552551,3.21533,3110.1,3109.6,3.859014]
[1732109552751,0.29932805,3110.0,3109.6,3.21584]
[1732109552946,0.29932805,3109.9,3109.6,3.21584]
[1732109553140,3.21521,3110.3,3109.6,3.21584]
[1732109553443,0.29932319,3110.2,3109.3,3.80358253]
[1732109553750,3.21477,3110.7,3109.7,3.80358253]
[1732109553954,0.29925695,3110.6,3110.2,3.21516]
[1732109554161,0.29925695,3110.5,3110.2,3.21516]
[1732109554365,0.29925695,3110.4,3110.3,3.21512]
[1732109554574,0.29868083,3111.0,3110.6,3.21481]
[1732109554799,0.29921473,3110.9,3110.7,3.21463]
[1732109554948,0.29921473,3110.8,3110.7,3.21463]
[1732109555287,0.29921473,3110.8,3110.6,3.21473]
[1732109555486,0.29868083,3111.0,3110.9,3.2145]
[1732109555711,0.59789778,3111.0,3110.9,3.2145]
[1732109555849,0.59789778,3111.0,3110.8,3.21451]
[1732109556180,0.29868083,3111.0,3110.8,3.21451]
[1732109556881,0.29868083,3111.0,3110.3,4.12913]
[1732109557045,0.29921855,3110.9,3110.5,3.21491]
[1732109557250,0.29921855,3110.8,3110.5,3.21491]
[1732109557585,0.29868083,3111.0,3110.6,3.21475]
[1732109557889,0.29934746,3110.9,3110.7,3.21469]
[1732109558061,0.29934746,3110.8,3110.3,0.9141]
[1732109558383,0.29938112,3110.7,3110.5,3.21484]
[1732109558547,3.21461,3110.8,3110.3,3.21506]
[1732109558746,3.51423476,3110.7,3110.1,3.21527]
[1732109558989,3.32771,3110.8,3109.7,3.80358253]
[1732109558990,3.51435476,3110.6,3109.7,3.21569]
[1732109559176,3.51435476,3110.6,3109.4,0.8838]
[1732109559177,3.21529,3110.2,3109.5,3.21587]
[1732109559501,6.00618313,3110.8,3109.4,0.8838]
[1732109559502,0.29945476,3110.1,3109.4,0.8838]
[1732109559701,0.29950298,3110.0,3109.8,3.21563]
[1732109559905,3.21515,3110.3,3109.7,3.21567]
[1732109560057,0.29953287,3110.2,3109.7,3.21567]
[1732109560411,3.21488,3110.6,3110.0,3.21537]
[1732109560564,0.90167387,3110.5,3110.0,3.21537]
[1732109560939,5.89326313,3110.6,3110.0,3.21537]
[1732109560940,0.29951039,3110.4,3110.0,3.21537]
[1732109561113,0.29951039,3110.3,3110.1,3.21531]
[1732109561408,3.21485,3110.6,3110.0,3.2154]
[1732109561702,0.29951094,3110.5,3110.1,3.21533]
[1732109562087,0.29951094,3110.4,3110.1,3.21532]
[1732109562261,0.29951094,3110.3,3109.9,3.21549]
[1732109562460,0.29951094,3110.2,3109.9,3.21549]
[1732109562685,0.29951094,3110.1,3109.9,3.21549]
[1732109562892,0.29951094,3110.0,3109.9,3.21549]
[1732109563063,0.29951094,3110.0,3109.7,3.21571]
[1732109563268,0.29966662,3109.9,3109.7,3.21571]
[1732109563466,3.21523,3110.2,3109.7,3.21571]
[1732109563777,2.67838313,3110.3,3109.7,3.21571]
[1732109563778,0.29979273,3110.1,3109.8,3.21563]
[1732109563987,0.29979273,3110.0,3109.7,3.21571]
[1732109564189,0.29979273,3110.0,3109.5,3.21591]
[1732109564190,0.29979273,3109.9,3108.8,0.9367]
[1732109564409,2.97817586,3109.8,3109.3,3.21609]
[1732109564710,2.79148313,3110.0,3109.4,3.21595]
[1732109564911,0.29978579,3109.9,3109.6,3.21577]
[1732109565125,2.67838313,3110.1,3109.4,0.321595]
[1732109565410,0.29977046,3110.0,3109.8,3.21556]
[1732109565583,2.67838313,3110.2,3109.6,6.43157]
[1732109565788,2.67838313,3110.0,3109.6,3.21575]
[1732109565981,0.29977812,3109.9,3109.6,3.21575]
[1732109566182,0.29977812,3109.8,3109.6,3.21575]
[1732109566383,2.67838313,3110.0,3109.7,3.21574]
[1732109566600,0.29977356,3109.9,3109.7,3.21574]
[1732109566771,0.29977356,3109.8,3109.7,3.21574]
[1732109566971,2.67838313,3110.0,3109.8,3.2156]
[1732109567211,0.29977412,3109.9,3109.8,3.21564]
[1732109567397,0.29977412,3109.9,3109.8,3.858778]
[1732109567574,2.67838313,3110.2,3109.9,3.21552]
[1732109567773,0.29976268,3110.1,3110.0,3.21534]
[1732109568014,3.34325168,3110.5,3110.1,3.21527]
[1732109568015,2.67838313,3110.5,3110.1,3.21527]
[1732109568329,0.29975192,3110.4,3110.2,3.21522]
[1732109568506,0.29975192,3110.3,3110.2,3.21514]
[1732109568676,0.29975192,3110.3,3110.1,3.21525]
[1732109568886,0.29975192,3110.2,3110.1,3.21523]
[1732109569374,0.29976235,3110.2,3110.1,3.858302]
[1732109569580,2.67838313,3110.7,3110.2,3.21522]
[1732109569813,2.67838313,3110.8,3110.7,3.21471]
[1732109570014,0.29971217,3110.8,3110.7,3.21471]
[1732109570422,2.67838313,3111.1,3111.0,3.21439]
[1732109570578,2.67838313,3111.2,3111.1,3.21429]
[1732109570781,2.67838313,3111.4,3111.3,3.21409]
[1732109571115,2.67838313,3111.5,3111.2,4.14709]
[1732109571295,0.29961036,3111.4,3111.3,3.21409]
[1732109571493,0.29961036,3111.4,3111.3,3.950208]
[1732109571706,0.29961036,3111.5,3111.4,3.21398]
[1732109571910,2.67838313,3111.7,3111.6,3.21378]
[1732109572219,2.97789403,3111.7,3111.6,3.21378]
[1732109572584,0.2995109,3111.7,3111.6,3.21378]
[1732109572990,0.2995109,3111.7,3111.4,6.42787]
[1732109573191,0.2995109,3111.7,3110.9,4.12503253]
[1732109573192,2.98036567,3111.6,3110.9,3.21441]
[1732109573490,2.68085477,3111.3,3111.1,3.21426]
[1732109573803,2.68085477,3111.4,3111.2,3.21419]
[1732109573997,0.29937086,3111.3,3110.4,0.9228]
[1732109574220,2.98022563,3111.2,3110.8,3.21451]
[1732109574518,0.29937086,3111.1,3110.9,3.21444]
[1732109574912,5.89505477,3111.2,3110.4,0.9228]
[1732109575224,2.68085477,3111.0,3110.4,0.9228]
[1732109575421,0.2993798,3110.9,3110.7,3.21461]
[1732109575624,3.46231805,3111.2,3110.7,3.21461]
[1732109575625,2.68085477,3111.1,3110.7,3.21461]
[1732109575833,0.29939683,3111.0,3110.7,3.21461]
[1732109576127,0.29939683,3111.0,3110.9,3.21448]
[1732109576331,3.35231805,3111.2,3110.9,3.21448]
[1732109576332,2.68085477,3111.2,3111.1,3.21429]
[1732109576532,0.29941268,3111.2,3111.1,3.21429]
[1732109576690,2.98026745,3111.2,3111.1,3.21429]
[1732109577024,2.98026745,3111.2,3110.7,6.4293]
[1732109577240,2.98141763,3111.1,3110.8,3.21452]
[1732109577526,2.68200495,3111.2,3110.9,3.21447]
[1732109577731,0.29938376,3111.1,3110.7,3.21463]
[1732109578025,3.35231805,3111.2,3111.0,3.2144]
[1732109578229,2.68252114,3111.3,3111.2,3.21419]
[1732109578452,0.29935679,3111.3,3111.2,3.21419]
[1732109578613,2.68252114,3111.5,3111.2,3.21419]
[1732109578818,0.2993146,3111.4,3111.2,3.21419]
[1732109579112,2.68252114,3111.5,3111.3,3.21408]
[1732109579313,2.68252114,3111.5,3111.3,6.42809]
[1732109579520,2.68252114,3111.4,3111.3,6.42809]
[1732109579903,2.68252114,3111.5,3111.4,3.21398]
[1732109580301,3.65155366,3111.5,3110.8,3.2146]
[1732109580601,3.2135,3111.9,3110.8,3.2146]
[1732109580602,2.68320742,3111.3,3111.1,3.21421]
[1732109580808,2.68320742,3111.2,3111.1,3.21421]
[1732109581024,2.68320742,3111.3,3110.9,3.2145]
[1732109581331,2.68320742,3111.3,3111.1,3.21428]
[1732109581895,2.68320742,3111.5,3111.3,3.21409]
[1732109582141,2.68320742,3111.7,3111.6,3.21378]
[1732109582443,3.35231805,3111.8,3111.7,3.21367]
[1732109582444,2.68320742,3111.8,3111.7,3.21367]
[1732109582738,2.68320742,3112.0,3111.8,3.21357]
[1732109582942,2.68320742,3111.9,3111.6,3.21378]
[1732109583105,2.98238101,3111.8,3111.5,3.21385]
[1732109583313,2.68320742,3111.7,3111.5,3.21385]
[1732109583621,5.8958293,3111.6,3111.0,3.21436]
[1732109583819,5.8958293,3111.6,3110.8,0.9305]
[1732109583820,2.98127231,3111.5,3111.2,3.21409]
[1732109584036,2.68215811,3111.5,3111.2,3.21409]
[1732109584539,2.68215811,3111.5,3111.0,3.21431]
[1732109584962,6.00614811,3111.4,3110.8,3.21452]
[1732109585096,5.89637811,3111.2,3110.7,3.21465]
[1732109585445,2.98132236,3111.1,3111.0,3.2144]
[1732109585593,2.68215811,3111.2,3111.0,3.2144]
[1732109585796,2.68215811,3111.2,3110.7,3.21465]
[1732109585998,2.68215811,3111.1,3110.7,3.21465]
[1732109586197,2.68215811,3111.1,3110.9,3.21444]
[1732109586643,2.68215811,3111.1,3110.7,6.42933]
[1732109586940,2.68215811,3111.2,3111.1,3.21429]
[1732109587154,2.98126006,3111.2,3111.0,3.21439]
[1732109587446,2.98125846,3111.1,3110.7,3.21468]
[1732109587608,2.68206976,3111.1,3111.0,3.2144]
[1732109587810,2.68206976,3111.2,3111.0,3.2144]
[1732109588061,2.68206976,3111.2,3111.1,3.21429]
[1732109588343,2.68206976,3111.2,3110.9,3.21448]
[1732109588551,2.68206976,3111.2,3110.8,3.21453]
[1732109588702,5.89626976,3111.2,3110.2,3.9414]
[1732109588912,5.89651976,3111.0,3110.4,3.21495]
[1732109589135,3.21479,3110.7,3110.0,3.21539]
[1732109589306,2.68206976,3110.7,3110.4,3.21493]
[1732109589506,2.68206976,3110.8,3110.4,3.21493]
[1732109589732,2.68206976,3111.0,3110.8,3.2146]
[1732109590062,2.68206976,3111.0,3110.6,3.21474]
[1732109590237,2.68206976,3111.0,3109.9,0.9652]
[1732109590238,2.9812744,3110.9,3110.4,3.21492]
[1732109590406,2.9812744,3110.8,3110.4,3.21492]
[1732109590748,3.09134802,3110.7,3110.2,3.21517]
[1732109590913,2.98134897,3110.6,3110.0,3.21536]
[1732109591153,2.98134897,3110.6,3110.2,3.21522]
[1732109591154,2.68206976,3110.6,3110.2,3.21522]
[1732109591358,2.68206976,3110.6,3110.1,3.21531]
[1732109591359,2.68206976,3110.5,3110.1,3.21531]
[1732109591598,3.21484,3110.6,3110.1,3.21531]
[1732109591599,2.68206976,3110.6,3110.1,6.43055]
[1732109591743,2.68206976,3110.6,3110.2,3.2152]
[1732109591943,2.98137951,3110.5,3110.2,3.2152]
[1732109592144,2.68206976,3110.6,3110.1,3.21527]
[1732109592486,0.29932995,3110.5,3110.3,3.21511]
[1732109592689,2.68206976,3110.6,3110.1,6.43054]
[1732109592980,5.89688976,3110.6,3110.1,3.21527]
[1732109593141,2.68206976,3110.5,3110.1,3.21527]
[1732109593486,2.68206976,3110.5,3109.9,4.95755825]
[1732109593487,5.89699976,3110.5,3109.9,4.18068]
[1732109593883,9.11200976,3110.5,3109.9,4.18068]
[1732109594183,2.68206976,3110.5,3110.1,3.21531]
[1732109594381,0.29953192,3110.4,3110.1,3.21531]
[1732109594683,0.29953192,3110.4,3109.9,4.18066]
[1732109594892,3.21504,3110.4,3109.9,3.21546]
[1732109595095,3.51465746,3110.3,3109.7,3.21566]
[1732109595300,5.89710976,3110.4,3109.6,0.9212]
[1732109595457,6.19688246,3110.3,3109.6,4.13696]
[1732109595656,6.19688246,3110.3,3109.7,3.21572]
[1732109595657,3.21523,3110.2,3109.7,3.21572]
[1732109595898,0.29960786,3110.1,3109.7,3.21572]
[1732109596082,5.89729976,3110.2,3109.5,3.21594]
[1732109596267,3.21545,3110.0,3109.5,3.21594]
[1732109596471,3.71136982,3110.1,3109.7,3.21572]
[1732109596472,3.41176052,3110.1,3109.7,3.21572]
[1732109596761,0.29965722,3110.0,3109.5,3.21591]
[1732109596967,2.68206976,3110.1,3109.7,3.21568]
[1732109597260,0.11,3110.5,3109.3,0.9212]
[1732109597261,2.68206976,3110.5,3110.0,0.9425]
[1732109597495,0.29969978,3110.4,3110.3,3.21512]
[1732109597677,2.68206976,3110.7,3110.4,3.21501]
[1732109597878,2.68206976,3110.7,3110.6,3.21481]
[1732109598201,2.68206976,3111.0,3110.8,3.21453]
[1732109598410,2.68206976,3111.2,3110.9,3.21441]
[1732109598561,0.29965468,3111.1,3110.8,3.2146]
[1732109598901,2.68206976,3111.2,3110.8,3.21454]
[1732109599197,0.29964956,3111.1,3110.9,3.21448]
[1732109599372,2.68206976,3111.3,3110.9,3.21448]
[1732109599576,2.9817618,3111.2,3111.1,3.21429]
[1732109599774,2.68206976,3111.3,3111.2,3.21419]
[1732109600108,2.68206976,3111.3,3111.1,3.21429]
[1732109600109,4.09882176,3111.3,3110.3,0.55]
[1732109600306,2.98249202,3111.3,3111.1,3.21426]
[1732109600610,0.29967354,3111.2,3110.9,3.21442]
[1732109600758,2.68281848,3111.3,3111.1,3.21429]
[1732109600962,2.68281848,3111.3,3111.2,3.21419]
[1732109601161,2.68281848,3111.5,3111.3,3.21409]
[1732109601395,0.29965783,3111.4,3111.3,3.21409]
[1732109601712,2.79281848,3111.6,3111.3,3.21409]
[1732109601713,2.68281848,3111.6,3111.3,3.21409]
[1732109601867,0.29965056,3111.5,3111.4,3.21398]
[1732109602600,2.98246904,3111.5,3111.3,3.21401]
[1732109602803,2.68281848,3111.6,3111.3,3.21401]
[1732109603106,2.98247209,3111.5,3110.9,3.21447]
[1732109603341,2.68281848,3111.5,3111.3,3.21406]
[1732109603461,0.29966261,3111.4,3111.3,3.85689]
[1732109603667,2.68281848,3111.5,3111.4,3.21398]
[1732109603874,2.9824708,3111.5,3111.4,3.21398]
[1732109604113,0.29965232,3111.5,3111.2,3.21413]
[1732109604258,0.29965232,3111.4,3111.1,3.21428]
[1732109604465,2.68281848,3111.5,3111.3,6.42804]
[1732109604765,0.29962842,3111.4,3111.3,6.42804]
[1732109605159,0.29962842,3111.4,3111.3,3.21401]
[1732109605608,2.68281848,3111.6,3111.4,3.21396]
[1732109605763,2.68281848,3111.6,3111.5,3.21388]
[1732109606074,2.98121875,3111.6,3111.5,3.21388]
[1732109607000,3.61452235,3111.6,3111.3,3.21398]
[1732109607301,2.98126653,3111.5,3111.4,3.21398]
[1732109607803,2.98126653,3111.5,3111.3,3.21398]
[1732109607961,0.29958189,3111.4,3111.3,3.21398]
[1732109608464,2.98126653,3111.4,3111.3,3.21398]
[1732109608891,0.29958189,3111.4,3111.1,3.21423]
[1732109609097,3.35202065,3111.7,3111.1,3.21423]
[1732109609262,0.29955803,3111.6,3111.2,3.21418]
[1732109609583,0.29955803,3111.5,3111.0,3.21431]
[1732109609800,0.29955803,3111.4,3111.0,3.21431]
[1732109610002,0.29956235,3111.3,3111.0,3.21431]
[1732109610204,3.35202065,3111.6,3111.1,3.21428]
[1732109610403,0.29956281,3111.5,3111.1,3.21428]
[1732109610575,0.29956281,3111.4,3111.1,3.21428]
[1732109610775,0.29956281,3111.3,3111.1,3.21428]
[1732109612325,0.29962185,3111.2,3110.9,3.21449]
[1732109612612,6.65848975,3111.4,3110.8,3.21453]
[1732109612828,0.29962181,3111.3,3110.7,0.9013]
[1732109613002,3.21431,3111.1,3110.6,3.21472]
[1732109613187,3.51381181,3111.2,3110.6,3.21472]
[1732109613188,0.29962181,3111.0,3110.6,3.21472]
[1732109613388,3.35409975,3111.1,3110.7,3.21468]
[1732109613595,3.35409975,3110.9,3110.2,3.21517]
[1732109613915,3.35409975,3110.9,3109.8,3.21558]
[1732109613916,3.30554,3110.3,3109.8,3.21558]
[1732109614125,0.0904,3110.3,3109.8,3.21558]
[1732109614306,0.29976733,3110.2,3109.8,3.21558]